bitfinex/quotes_SOLUSD_20240821
["timestamp","ask_amount","ask_price","bid_price","bid_amount"]
[1724248785138,7.0529,141.79,141.75,1.41045945]
[1724248785348,0.8493177,141.84,141.7,20.0]
[1724248785637,7.0532,141.78,141.73,20.0]
[1724248785841,0.8493177,141.84,141.73,20.0]
[1724248786014,20.8493177,141.84,141.71,20.0]
[1724248786348,17.6282,141.82,141.69,20.0359287]
[1724248786514,21.65229104,141.81,141.69,0.0359287]
[1724248786708,21.65229104,141.81,141.65,20.0]
[1724248786962,7.0571,141.7,141.65,20.0]
[1724248787124,12.9197,141.76,141.66,0.07783502]
[1724248787314,7.0583,141.68,141.66,0.07783502]
[1724248787511,7.0583,141.68,141.61,20.0]
[1724248787741,7.0579,141.69,141.61,20.0]
[1724248787913,20.0,141.73,141.62,0.07783502]
[1724248788118,78.35288,141.72,141.62,0.07783502]
[1724248788329,7.0612,141.62,141.55,20.0]
[1724248788542,7.0623,141.6,141.54,0.07783502]
[1724248788743,7.0623,141.6,141.53,20.0]
[1724248788941,19.29559104,141.7,141.57,20.0]
[1724248788942,7.0614,141.62,141.57,20.0]
[1724248789117,17.6433,141.7,141.58,1.412193]
[1724248789429,7.0618,141.61,141.53,20.0]
[1724248789631,7.0625,141.6,141.53,20.07783502]
[1724248789858,17.6485,141.66,141.51,20.0]
[1724248790017,7.0628,141.59,141.51,20.0]
[1724248790217,14.34569104,141.65,141.48,20.0]
[1724248790218,17.6529,141.62,141.48,20.0]
[1724248790422,7.0634,141.58,141.52,20.0]
[1724248790639,12.6934,141.65,141.52,20.0]
[1724248790822,7.0638,141.57,141.49,20.0]
[1724248791031,7.0638,141.57,141.5,0.07783502]
[1724248791228,17.6461,141.68,141.55,20.0]
[1724248791437,7.06,141.65,141.56,27.064]
[1724248791749,12.171,141.71,141.58,20.0]
[1724248792051,7.0604,141.64,141.55,27.0644]
[1724248792337,7.0618,141.61,141.54,17.662]
[1724248792516,1.65229104,141.68,141.5,37.6677]
[1724248792716,7.0628,141.59,141.5,44.7344]
[1724248792917,7.0634,141.58,141.51,1.41271824]
[1724248793117,1.65229104,141.65,141.48,27.0678]
[1724248793351,7.0642,141.56,141.49,1.41291819]
[1724248793523,65.0,141.65,141.5,27.0669]
[1724248793720,7.0624,141.6,141.51,8.47900141]
[1724248794047,7.0627,141.59,141.52,20.0]
[1724248794242,7.0633,141.58,141.5,20.0]
[1724248794542,7.0638,141.57,141.49,24.7366]
[1724248794741,7.0638,141.57,141.49,17.669]
[1724248795254,66.65229104,141.65,141.48,20.0]
[1724248795255,7.0648,141.55,141.48,20.0]
[1724248795451,7.0657,141.53,141.45,37.674]
[1724248795819,19.30849104,141.6,141.47,20.0]
[1724248796148,42.9625,141.62,141.42,35.3548]
[1724248796149,20.0,141.59,141.48,37.6695]
[1724248796353,7.0642,141.56,141.48,37.6695]
[1724248796558,20.0,141.59,141.48,37.6695]
[1724248796744,7.0655,141.54,141.46,27.069]
[1724248797049,17.6557,141.6,141.46,27.069]
[1724248797050,17.6557,141.6,141.46,27.0688]
[1724248797251,20.0,141.59,141.48,20.0]
[1724248797755,20.0,141.59,141.49,1.41294234]
[1724248798254,20.0,141.59,141.44,17.6752]
[1724248798255,7.0652,141.54,141.46,27.0687]
[1724248798724,7.0652,141.54,141.47,0.12549]
[1724248799046,20.0,141.59,141.48,20.0]
[1724248799047,7.0645,141.56,141.48,20.0]
[1724248799221,7.0645,141.56,141.48,27.068]
[1724248799419,20.0,141.59,141.49,0.84849935]
[1724248799622,7.0646,141.55,141.48,7.0678]
[1724248799927,7.0647,141.55,141.49,1.38974255]
[1724248800227,7.0644,141.56,141.49,1.38974255]
[1724248800447,7.0622,141.6,141.51,20.0]
[1724248800655,42.9625,141.62,141.52,1.38965762]
[1724248800656,7.0636,141.57,141.52,1.38965762]
[1724248800853,7.0643,141.56,141.49,27.0674]
[1724248801033,42.9625,141.62,141.49,27.0674]
[1724248801034,7.0621,141.61,141.53,20.0]
[1724248801224,44.8015,141.69,141.55,88.6612]
[1724248801547,44.8015,141.69,141.54,1.41241833]
[1724248801548,7.0588,141.67,141.59,7.0622]
[1724248801758,1.65229104,141.67,141.5,20.0]
[1724248802045,80.0903,141.69,141.55,20.0]
[1724248802046,87.91680424,141.69,141.55,20.0]
[1724248802246,44.8015,141.69,141.51,20.0]
[1724248802454,10.02046195,141.68,141.49,20.0]
[1724248802654,10.02046195,141.68,141.51,7.0665]
[1724248802655,7.0626,141.6,141.51,7.0665]
[1724248802828,7.0631,141.58,141.5,27.067]
[1724248803025,19.30339104,141.64,141.44,51.0]
[1724248803026,1.65229104,141.63,141.49,20.0]
[1724248803229,17.6546,141.61,141.49,20.0]
[1724248803533,7.0636,141.57,141.49,27.0674]
[1724248803754,1.65229104,141.63,141.5,7.067]
[1724248803943,17.90448,141.62,141.48,7.0677]
[1724248804142,7.0647,141.55,141.47,37.6707]
[1724248804347,7.064,141.57,141.47,37.6707]
[1724248804551,7.0631,141.58,141.49,20.0]
[1724248804724,1.65229104,141.57,141.47,17.6707]
[1724248804927,7.0661,141.52,141.45,20.0]
[1724248805163,7.0661,141.52,141.45,27.0695]
[1724248805649,33.328,141.57,141.45,27.0695]
[1724248805837,21.65229104,141.56,141.45,27.0695]
[1724248806024,1.65229104,141.55,141.45,20.0]
[1724248806231,7.0662,141.52,141.45,27.0696]
[1724248806434,7.0655,141.54,141.46,7.0689]
[1724248806632,44.3366,141.63,141.49,20.0]
[1724248806838,7.0626,141.59,141.5,7.0666]
[1724248807032,1.65229104,141.58,141.49,17.6681]
[1724248807328,1.65229104,141.58,141.45,35.3467]
[1724248807329,7.0656,141.53,141.45,37.6735]
[1724248807538,1.65229104,141.62,141.47,20.0]
[1724248807725,19.30549104,141.62,141.47,17.6709]
[1724248807931,7.0641,141.56,141.48,7.0681]
[1724248808128,7.0651,141.54,141.47,17.6709]
[1724248808327,44.3366,141.63,141.51,20.0]
[1724248808563,12.784,141.69,141.55,20.0]
[1724248808854,12.784,141.69,141.61,7.0614]
[1724248808855,19.8417,141.69,141.61,7.0614]
[1724248809050,7.0582,141.68,141.62,1.41186568]
[1724248809257,12.784,141.69,141.62,1.41186568]
[1724248809461,12.784,141.69,141.62,8.47296568]
[1724248809751,33.1475,141.7,141.61,1.41169193]
[1724248809960,33.1475,141.7,141.6,7.0616]
[1724248809961,33.1475,141.7,141.63,7.0605]
[1724248810165,33.1475,141.7,141.6,20.0]
[1724248810335,33.1475,141.7,141.61,1.41179372]
[1724248810532,33.1475,141.7,141.6,20.0]
[1724248810750,7.0577,141.69,141.62,1.41169835]
[1724248811053,1.65229104,141.73,141.56,20.0]
[1724248811249,44.74168973,141.73,141.51,27.0662]
[1724248811453,17.6463,141.68,141.54,20.0]
[1724248811636,7.0597,141.65,141.56,7.064]
[1724248811831,7.0585,141.68,141.58,20.0]
[1724248812032,7.0582,141.68,141.6,7.0618]
[1724248812254,14.93969104,141.74,141.61,7.0615]
[1724248812458,19.29229104,141.73,141.57,68.6583]
[1724248812630,19.29229104,141.73,141.57,88.6583]
[1724248812631,17.64,141.73,141.57,88.6583]
[1724248812835,7.0588,141.67,141.59,27.0622]
[1724248813057,13.2874,141.74,141.63,7.0605]
[1724248813256,7.0561,141.73,141.65,7.0596]
[1724248813462,7.055,141.75,141.66,21.41124669]
[1724248813671,13.1117,141.81,141.68,20.0]
[1724248813963,13.1117,141.81,141.69,52.41085832]
[1724248814137,13.1117,141.81,141.69,1.41085832]
[1724248814474,13.1117,141.81,141.54,121.45150251]
[1724248814475,7.0576,141.69,141.62,17.6523]
[1724248814752,9.46268973,141.8,141.58,17.6575]
[1724248814753,7.0596,141.65,141.58,17.6575]
[1724248814984,17.641,141.72,141.58,17.6575]
[1724248815185,1.65229104,141.71,141.59,20.0]
[1724248815383,17.641,141.72,141.6,20.0]
[1724248815590,7.0571,141.7,141.61,24.7147]
[1724248815887,52.907,141.76,141.62,20.0]
[1724248816189,17.6312,141.8,141.63,21.41158904]
[1724248816385,7.0538,141.77,141.68,20.0]
[1724248816555,13.1117,141.81,141.69,1.4111135]
[1724248816757,1.65229104,141.8,141.67,17.6461]
[1724248816962,1.65229104,141.79,141.65,7.0592]
[1724248817252,1.65229104,141.79,141.59,1.41120796]
[1724248817253,7.0582,141.68,141.59,24.7181]
[1724248817459,17.637,141.75,141.6,20.0]
[1724248817768,1.65229104,141.74,141.59,17.656]
[1724248817968,0.12549,141.73,141.59,17.656]
[1724248818191,7.0593,141.66,141.59,17.656]
[1724248818385,17.6407,141.72,141.6,1.41199686]
[1724248818588,7.0582,141.68,141.61,7.0615]
[1724248818769,7.0582,141.68,141.6,7.0621]
[1724248819097,17.6407,141.72,141.6,20.0]
[1724248819098,7.0578,141.69,141.6,20.0]
[1724248819294,35.2719,141.76,141.61,7.0615]
[1724248819465,7.0561,141.72,141.64,7.06]
[1724248819662,35.2479,141.86,141.62,17.6524]
[1724248819868,7.0567,141.71,141.63,8.4721417]
[1724248820086,7.81039869,141.83,141.64,0.82747271]
[1724248820087,7.0574,141.7,141.64,0.82747271]
[1724248820276,17.6347,141.77,141.65,8.28293589]
[1724248820466,1.65229104,141.76,141.62,17.6524]
[1724248820779,35.2713,141.76,141.59,20.0]
[1724248820984,7.0583,141.68,141.6,7.062]
[1724248821169,7.0576,141.69,141.6,7.0616]
[1724248821368,37.76229,141.75,141.59,21.76737906]
[1724248821369,7.0581,141.68,141.61,1.40909638]
[1724248821592,17.6406,141.72,141.61,7.0616]
[1724248821779,20.0,141.71,141.59,7.0621]
[1724248821979,20.0,141.71,141.59,20.0]
[1724248822281,7.0582,141.68,141.61,17.6535]
[1724248822482,7.0582,141.68,141.62,1.41179202]
[1724248822682,17.6393,141.73,141.62,1.41179202]
[1724248822996,7.0557,141.73,141.66,7.0591]
[1724248823299,7.0557,141.73,141.67,1.41129375]
[1724248823474,17.6353,141.77,141.68,1.41119413]
[1724248823674,7.0556,141.74,141.68,1.41119413]
[1724248823864,1.65229104,141.8,141.67,7.0586]
[1724248824073,66.0006,141.81,141.68,0.37961119]
[1724248824265,67.65289104,141.81,141.67,7.0586]
[1724248824492,17.633,141.78,141.66,20.0]
[1724248825065,17.633,141.78,141.65,0.12549]
[1724248825270,7.0556,141.73,141.65,1.41121106]
[1724248825489,1.65229104,141.77,141.64,0.12549]
[1724248825699,7.0562,141.72,141.65,27.0595]
[1724248825877,7.0556,141.73,141.66,1.41125218]
[1724248826080,7.0541,141.77,141.69,7.0575]
[1724248826281,48.3705,141.81,141.67,7.0582]
[1724248826479,7.0562,141.72,141.66,17.6477]
[1724248826684,50.02279104,141.81,141.62,37.6518]
[1724248826685,17.6378,141.75,141.62,37.6518]
[1724248826903,17.6378,141.75,141.63,7.0605]
[1724248827103,7.0575,141.7,141.62,17.6518]
[1724248827398,17.6403,141.73,141.62,7.061]
[1724248827600,20.0,141.72,141.61,17.6541]
[1724248827774,20.0,141.72,141.61,24.7157]
[1724248827973,20.0,141.72,141.62,1.41180364]
[1724248828173,7.0591,141.66,141.58,20.0]
[1724248828400,7.0591,141.66,141.58,7.0631]
[1724248828701,20.0,141.72,141.58,20.0]
[1724248828904,20.0,141.72,141.57,52.974]
[1724248828905,7.0602,141.64,141.57,17.6581]
[1724248829109,87.5074,141.71,141.58,20.0]
[1724248829400,20.0,141.7,141.58,20.0]
[1724248829579,20.0,141.7,141.59,1.38057026]
[1724248829776,42.5074,141.71,141.6,20.0]
[1724248829990,42.5074,141.71,141.61,7.0616]
[1724248830193,49.5644,141.71,141.62,27.061]
[1724248830387,7.057,141.71,141.62,21.38006724]
[1724248830797,17.6389,141.74,141.63,7.0604]
[1724248830798,7.0571,141.7,141.63,7.0604]
[1724248831120,12.4094,141.76,141.64,7.0599]
[1724248831325,7.0566,141.71,141.64,7.0599]
[1724248831627,7.0566,141.71,141.63,17.6513]
[1724248831828,7.0571,141.7,141.63,17.6513]
[1724248831993,7.0565,141.72,141.63,24.7119]
[1724248832194,7.0571,141.7,141.63,17.6513]
[1724248832435,7.0586,141.67,141.6,7.0617]
[1724248832596,7.0596,141.66,141.59,17.6558]
[1724248832801,17.6405,141.72,141.61,7.0614]
[1724248833025,17.6405,141.72,141.62,1.41179716]
[1724248833226,7.0571,141.71,141.62,8.47279716]
[1724248833394,17.6392,141.73,141.59,7.0621]
[1724248833599,7.0586,141.68,141.59,7.0621]
[1724248833819,66.90327104,141.72,141.58,20.0]
[1724248833820,7.0591,141.66,141.58,20.0]
[1724248834013,7.0597,141.65,141.58,27.063]
[1724248834224,17.6429,141.7,141.59,7.0626]
[1724248834394,17.6429,141.7,141.58,20.0]
[1724248834598,45.0,141.72,141.6,17.6552]
[1724248834810,65.3685,141.77,141.6,17.6552]
[1724248834811,39.29399104,141.71,141.6,17.6552]
[1724248835020,7.0601,141.64,141.56,24.7235]
[1724248835325,7.0586,141.67,141.6,7.0618]
[1724248835514,7.0591,141.66,141.59,24.7185]
[1724248835725,37.6415,141.72,141.6,1.41206106]
[1724248835898,7.0602,141.64,141.55,37.6605]
[1724248836106,7.0606,141.63,141.56,7.0641]
[1724248836406,7.0601,141.64,141.57,8.47584574]
[1724248836614,7.0601,141.64,141.58,1.41224607]
[1724248837219,7.0606,141.63,141.56,7.064]
[1724248837728,1.65229104,141.62,141.55,17.6605]
[1724248838021,7.061,141.63,141.56,1.41178006]
[1724248838223,17.6477,141.67,141.55,17.6605]
[1724248838525,17.6501,141.65,141.56,1.41247866]
[1724248839130,17.6501,141.65,141.53,20.0]
[1724248839131,17.6527,141.63,141.53,20.0]
[1724248839306,7.0625,141.6,141.53,20.0]
[1724248839510,7.0625,141.6,141.53,27.0655]
[1724248839814,12.3505,141.65,141.55,7.0645]
[1724248840018,20.0,141.64,141.54,17.6627]
[1724248840220,7.0626,141.59,141.53,20.0]
[1724248840533,7.0626,141.59,141.5,29.8371]
[1724248840822,21.65229104,141.64,141.51,20.0]
[1724248841707,7.0631,141.58,141.5,24.7335]
[1724248841902,21.65229104,141.64,141.47,7.0684]
[1724248841903,7.0652,141.54,141.47,7.0684]
[1724248842107,7.0636,141.57,141.49,17.669]
[1724248842325,7.0636,141.57,141.49,44.7366]
[1724248843132,7.0643,141.56,141.49,44.7366]
[1724248843436,1.65229104,141.55,141.46,17.6727]
[1724248843601,17.6517,141.63,141.48,20.0]
[1724248843800,17.6517,141.63,141.49,1.41296743]
[1724248843801,7.0641,141.56,141.49,1.41296743]
[1724248844026,1.65229104,141.55,141.42,20.0]
[1724248844230,35.3126,141.6,141.42,20.0]
[1724248844231,7.0673,141.5,141.44,17.674]
[1724248844532,7.0667,141.51,141.44,17.674]
[1724248844738,14.70779104,141.54,141.44,17.674]
[1724248844936,7.0672,141.5,141.42,20.0]
[1724248845116,7.0676,141.49,141.41,17.679]
[1724248845437,7.0671,141.5,141.42,8.48481409]
[1724248845609,20.0,141.53,141.42,20.0]
[1724248845813,20.0,141.53,141.44,17.675]
[1724248846129,7.0677,141.49,141.4,37.6791]
[1724248846446,17.6696,141.49,141.36,24.7578]
[1724248846734,7.0706,141.43,141.36,17.6842]
[1724248847239,7.0716,141.41,141.37,1.41351032]
[1724248847434,7.0726,141.39,141.34,0.8493177]
[1724248847636,1.67515402,141.4,141.34,0.8493177]
[1724248847637,1.67515402,141.38,141.34,0.8493177]
[1724248847810,13.0777,141.4,141.34,0.8493177]
[1724248847811,1.67515402,141.37,141.34,0.8493177]
[1724248848013,20.0,141.39,141.34,0.8493177]
[1724248848939,7.0746,141.35,141.34,0.8493177]
[1724248849328,30.7582,141.4,141.34,0.8493177]
[1724248849513,30.6294,141.44,141.37,7.0735]
[1724248849845,30.6294,141.44,141.36,17.6851]
[1724248849846,32.30455402,141.44,141.36,17.6851]
[1724248850138,7.0716,141.41,141.34,7.9244177]
[1724248850313,7.0721,141.4,141.34,0.8493177]
[1724248850514,7.0731,141.39,141.34,0.8493177]
[1724248850741,7.0721,141.41,141.34,7.9243177]
[1724248850930,7.0721,141.41,141.34,0.8493177]
[1724248851250,7.0737,141.37,141.34,0.8493177]
[1724248851415,7.0731,141.38,141.34,0.8493177]
[1724248851615,1.67515402,141.43,141.34,0.8493177]
[1724248851815,17.6794,141.41,141.34,0.8493177]
[1724248852019,21.92613402,141.4,141.34,0.8493177]
[1724248852216,7.0746,141.35,141.34,0.8493177]
[1724248852630,7.32558,141.35,141.34,0.8493177]
[1724248852836,27.0746,141.35,141.34,0.8493177]
[1724248853251,72.0746,141.35,141.34,0.8493177]
[1724248853551,27.0746,141.35,141.34,0.8493177]
[1724248853771,7.0746,141.35,141.34,0.8493177]
[1724248854743,27.0746,141.35,141.34,0.8493177]
[1724248855289,7.0746,141.35,141.34,0.8493177]
[1724248855585,7.0769,141.31,141.22,19.2072]
[1724248855761,7.0769,141.31,141.21,17.703]
[1724248856087,35.41995841,141.47,141.24,20.0]
[1724248856397,1.67515402,141.43,141.3,17.6926]
[1724248856568,7.0736,141.37,141.3,24.7696]
[1724248856887,7.073,141.39,141.3,24.7697]
[1724248857095,7.0721,141.4,141.3,17.6926]
[1724248857265,8.74775402,141.39,141.32,7.0761]
[1724248857572,7.0726,141.39,141.3,17.6926]
[1724248857776,48.3047,141.44,141.3,17.6926]
[1724248857966,7.0722,141.4,141.33,24.7639]
[1724248858482,7.0722,141.4,141.33,17.6887]
[1724248858683,7.0726,141.39,141.33,17.6887]
[1724248858865,1.67515402,141.43,141.33,24.7643]
[1724248859062,48.3048,141.44,141.33,24.7643]
[1724248859261,1.67515402,141.43,141.33,17.6887]
[1724248859457,1.67515402,141.42,141.29,17.6929]
[1724248859684,0.12549,141.41,141.29,17.6929]
[1724248859888,7.0737,141.37,141.29,24.7705]
[1724248860299,17.93008,141.41,141.29,17.6929]
[1724248860461,7.074,141.37,141.3,7.077]
[1724248860664,17.93008,141.41,141.3,7.077]
[1724248860882,66.67515402,141.4,141.29,17.6929]
[1724248861065,7.074,141.37,141.29,17.6929]
[1724248861260,7.0736,141.38,141.3,7.0766]
[1724248861469,65.0,141.4,141.31,7.0765]
[1724248861873,65.0,141.4,141.25,51.0]
[1724248861874,1.80064402,141.39,141.27,7.0781]
[1724248862167,0.12549,141.38,141.26,7.0791]
[1724248862380,7.0751,141.34,141.26,7.0791]
[1724248862775,1.80064402,141.39,141.28,17.6951]
[1724248862974,7.0716,141.41,141.33,7.0751]
[1724248863187,7.0716,141.41,141.34,7.0751]
[1724248863490,30.6294,141.44,141.3,20.0]
[1724248863689,12.7754,141.45,141.3,20.0]
[1724248863690,12.7754,141.45,141.32,35.379]
[1724248863893,7.0701,141.44,141.37,7.0735]
[1724248864616,7.0681,141.48,141.38,17.6816]
[1724248864894,7.0666,141.52,141.44,7.0701]
[1724248865198,14.45834553,141.53,141.45,0.67215257]
[1724248865369,7.39264553,141.53,141.44,17.6741]
[1724248865571,43.9912,141.56,141.44,17.6741]
[1724248865798,7.0662,141.52,141.44,24.7441]
[1724248866007,7.0686,141.48,141.41,17.679]
[1724248866173,17.6654,141.52,141.38,17.6827]
[1724248866367,7.0681,141.48,141.4,7.0719]
[1724248866572,79.3132,141.56,141.41,17.6786]
[1724248866773,43.9912,141.56,141.39,20.0]
[1724248866977,7.0657,141.53,141.46,7.0691]
[1724248867179,7.0651,141.55,141.47,7.0684]
[1724248867706,7.0651,141.55,141.48,1.413461]
[1724248867873,7.064,141.57,141.49,8.48020827]
[1724248868210,7.0636,141.57,141.49,7.0674]
[1724248868379,61.4004,141.61,141.51,7.0665]
[1724248868380,7.0631,141.59,141.51,7.0665]
[1724248868703,63.07555402,141.61,141.5,17.6678]
[1724248868704,7.0625,141.6,141.52,7.0659]
[1724248868882,7.0617,141.61,141.53,7.0655]
[1724248869082,12.8836,141.66,141.5,17.6678]
[1724248869083,1.67515402,141.6,141.5,17.6678]
[1724248869309,7.0642,141.56,141.46,17.6716]
[1724248869489,7.0642,141.56,141.49,7.0675]
[1724248869979,7.0654,141.54,141.46,17.6716]
[1724248870182,1.67515402,141.53,141.43,17.6765]
[1724248870404,7.0672,141.5,141.43,17.6765]
[1724248870776,7.0678,141.49,141.43,17.6765]
[1724248870988,14.56504402,141.54,141.39,24.7526]
[1724248871190,66.80064402,141.53,141.35,62.8236]
[1724248871507,66.80064402,141.53,141.35,17.6854]
[1724248871508,7.0717,141.41,141.35,17.6854]
[1724248871672,6.0717,141.41,141.31,37.6903]
[1724248871874,1.67515402,141.4,141.31,24.7666]
[1724248872081,17.6765,141.44,141.31,24.7666]
[1724248872303,7.0731,141.38,141.31,24.7666]
[1724248872480,7.0726,141.4,141.32,7.076]
[1724248872674,1.67515402,141.39,141.31,17.6903]
[1724248872879,7.0741,141.36,141.29,7.0776]
[1724248873095,1.67515402,141.35,141.22,20.0]
[1724248873292,65.0,141.43,141.22,20.0]
[1724248873293,17.6819,141.39,141.26,7.0791]
[1724248873495,66.92613402,141.38,141.26,7.0791]
[1724248873686,7.0756,141.33,141.25,7.0796]
[1724248873885,7.0772,141.3,141.23,17.7006]
[1724248874096,1.67515402,141.29,141.2,20.8493177]
[1724248874392,20.0,141.35,141.22,20.0]
[1724248874574,1.67515402,141.34,141.22,20.0]
[1724248874775,20.0,141.35,141.22,37.7024]
[1724248874976,7.0762,141.32,141.24,7.0797]
[1724248875176,20.0,141.37,141.25,1.41556507]
[1724248875379,20.0,141.37,141.22,17.7024]
[1724248875380,7.0767,141.31,141.23,7.0802]
[1724248875780,7.0767,141.31,141.22,17.7024]
[1724248875781,1.67515402,141.3,141.22,17.7024]
[1724248875988,1.80064402,141.36,141.22,17.7024]
[1724248876311,0.12549,141.35,141.22,17.7024]
[1724248876515,21.80064402,141.35,141.22,17.7024]
[1724248876696,62.81369,141.34,141.2,0.8493177]
[1724248877003,21.80064402,141.33,141.2,0.8493177]
[1724248877306,21.80064402,141.33,141.21,19.11993165]
[1724248877307,20.0,141.33,141.21,19.11993165]
[1724248877514,53.0496,141.38,141.21,17.7038]
[1724248877677,17.6871,141.35,141.2,0.8493177]
[1724248878006,7.0787,141.27,141.2,0.8493177]
[1724248878215,1.67515402,141.31,141.2,0.8493177]
[1724248878396,7.0802,141.24,141.2,0.8493177]
[1724248878711,7.0796,141.25,141.2,0.8493177]
[1724248878916,7.0791,141.26,141.2,0.8493177]
[1724248879083,7.0786,141.27,141.2,0.8493177]
[1724248879284,19.61933402,141.3,141.2,0.8493177]
[1724248879490,7.0796,141.25,141.2,0.8493177]
[1724248879916,1.67515402,141.28,141.2,0.8493177]
[1724248880307,7.0796,141.25,141.2,0.8493177]
[1724248880821,65.0,141.29,141.2,0.8493177]
[1724248880993,12.9305,141.41,141.2,0.8493177]
[1724248880994,12.9305,141.41,141.21,0.60477542]
[1724248881190,1.67515402,141.36,141.23,17.7007]
[1724248881515,35.3652,141.39,141.2,0.8493177]
[1724248881516,7.0786,141.27,141.2,0.8493177]
[1724248881690,1.67515402,141.26,141.2,0.8493177]
[1724248881895,7.0796,141.25,141.2,0.8493177]
[1724248882507,17.6903,141.32,141.2,7.9314177]
[1724248882702,1.67515402,141.3,141.2,0.8493177]
[1724248882917,19.62063402,141.29,141.2,0.8493177]
[1724248883088,65.25098,141.28,141.2,0.8493177]
[1724248883294,1.67515402,141.27,141.2,0.8493177]
[1724248883496,1.67515402,141.26,141.2,0.8493177]
[1724248883697,0.12549,141.25,141.2,0.8493177]
[1724248883993,7.0814,141.22,141.2,0.8493177]
[1724248884190,8.75675402,141.21,141.2,0.8493177]
[1724248885199,1.92613402,141.25,141.2,0.8493177]
[1724248885403,66.80064402,141.25,141.2,0.8493177]
[1724248885728,7.0816,141.21,141.2,0.8493177]
[1724248885904,52.20709,141.21,141.2,0.8493177]
[1724248886309,7.0861,141.12,141.05,33.7075177]
[1724248886512,17.7083,141.18,141.05,0.8493177]
[1724248886713,66.80064402,141.17,141.05,0.8493177]
[1724248887027,7.0868,141.11,141.05,0.8493177]
[1724248887233,66.67515402,141.1,141.05,0.8493177]
[1724248887407,7.0888,141.07,141.05,0.8493177]
[1724248887610,8.76425402,141.06,141.05,0.8493177]
[1724248887914,65.0,141.1,141.05,0.8493177]
[1724248888115,0.12549,141.09,141.05,0.8493177]
[1724248888316,7.0859,141.13,141.05,7.9385177]
[1724248888516,1.67515402,141.12,141.05,0.8493177]
[1724248888717,14.83955402,141.16,141.05,0.8493177]
[1724248888924,7.0861,141.12,141.05,0.8493177]
[1724248889224,1.67515402,141.11,141.05,0.8493177]
[1724248889424,1.67515402,141.14,141.05,18.5732177]
[1724248889635,7.0863,141.12,141.05,0.8493177]
[1724248889831,50.019,141.19,141.06,1.41764043]
[1724248889832,32.3114,141.19,141.06,1.41764043]
[1724248890039,1.67515402,141.18,141.07,17.7215]
[1724248890202,7.0863,141.12,141.05,0.8493177]
[1724248890530,1.67515402,141.11,141.05,0.8493177]
[1724248890825,7.0879,141.09,141.05,0.8493177]
[1724248891322,7.0868,141.11,141.05,0.8493177]
[1724248891626,21.67515402,141.13,141.05,0.8493177]
[1724248891809,7.0853,141.14,141.06,1.41793164]
[1724248892013,1.67515402,141.18,141.05,0.8493177]
[1724248892204,7.0869,141.11,141.05,0.8493177]
[1724248892405,1.67515402,141.1,141.05,0.8493177]
[1724248892727,17.7144,141.13,141.06,0.045]
[1724248893027,7.0882,141.08,141.06,0.045]
[1724248893231,7.0877,141.09,141.05,0.8493177]
[1724248893423,1.67515402,141.12,141.05,0.8493177]
[1724248893729,7.0891,141.07,141.05,0.8493177]
[1724248894145,7.0891,141.06,141.05,0.8493177]
[1724248896205,72.21459,141.06,141.05,0.8493177]
[1724248896411,74.01523402,141.06,141.05,0.8493177]
[1724248897005,72.34008,141.06,141.05,0.8493177]
[1724248897225,7.0891,141.06,141.05,0.8493177]
[1724248898317,52.0891,141.06,141.05,0.8493177]
[1724248898713,52.34008,141.06,141.05,0.8493177]
[1724248898914,7.0891,141.06,141.05,0.8493177]
[1724248899119,1.67515402,141.1,141.05,0.8493177]
[1724248899320,12.4838,141.16,141.05,7.9388177]
[1724248899624,7.0857,141.13,141.06,7.089]
[1724248899942,1.67515402,141.12,141.05,0.8493177]